fUST/lending_fUST_20250531
["ID","MTS","AMOUNT","RATE_DAILY","PERIOD"]
[363334109,1748680247129,-173.14713067,0.00019919,2]
[363334111,1748680247138,-1285.56,0.00019998,2]
[363334113,1748680247147,-430.0,0.00019998,2]
[363334115,1748680247157,-562.06,0.00019998,2]
[363334117,1748680247167,-666.14,0.00019998,2]
[363334119,1748680247176,-430.0,0.00019998,2]
[363334121,1748680247185,-766.51,0.00019998,2]
[363334123,1748680247194,-4392.05,0.00019998,2]
[363334125,1748680247204,-650.56,0.00019998,2]
[363334127,1748680247213,-430.0,0.00019998,2]
[363334129,1748680247221,-268.46260182,0.0002,2]
[363334131,1748680247230,-151.0,0.0002,4]
[363334133,1748680247239,-441.32,0.0002,2]
[363334135,1748680247249,-250.0,0.0002,30]
[363334137,1748680247258,-430.0,0.0002,2]
[363334139,1748680247268,-1677.22,0.0002,2]
[363334141,1748680247277,-430.0,0.0002,2]
[363334143,1748680247286,-430.0,0.0002,2]
[363334145,1748680247295,-965.51,0.0002,2]
[363334147,1748680247304,-2039.92,0.0002,2]
[363334149,1748680247313,-1308.83,0.0002,2]
[363334150,1748680247322,-507.89,0.0002,2]
[363334152,1748680247331,-758.04,0.0002,2]
[363334154,1748680247339,-430.0,0.0002,2]
[363334156,1748680247348,-430.0,0.0002,2]
[363334158,1748680247358,-502.08399402,0.0002,2]
[363334160,1748680247367,-1656.47,0.0002,2]
[363334162,1748680247376,-430.0,0.0002,2]
[363334164,1748680247385,-6298.82403136,0.0002,2]
[363334166,1748680247394,-12736.42206324,0.0002,2]
[363334168,1748680247404,-692.71,0.0002,2]
[363334170,1748680247414,-35483.5639356,0.0002,2]
[363334172,1748680247424,-454.91,0.0002,2]
[363334174,1748680247432,-633.95,0.0002,2]
[363334176,1748680247442,-430.0,0.0002,2]
[363334177,1748680247451,-746.34,0.0002,2]
[363334179,1748680247460,-4000.0,0.0002,4]
[363334181,1748680247470,-631.7,0.0002,2]
[363334183,1748680247479,-1264.09,0.0002,2]
[363334185,1748680247488,-1512.98,0.0002,2]
[363334187,1748680247498,-2371.29337549,0.00020072,2]
[363334189,1748680247508,-1000.0,0.00020086,2]
[363334191,1748680247518,-1000.0,0.00020086,2]
[363334193,1748680247527,-251.44409794,0.00020086,2]
[363334195,1748680247536,-1000.0,0.00020086,2]
[363334197,1748680247546,-1007.04766132,0.00020086,2]
[363334199,1748680247555,-1000.0,0.00020086,2]
[363334201,1748680247565,-525.52033247,0.00020086,2]
[363334203,1748680247574,-1000.0,0.00020086,2]
[363334205,1748680247584,-1000.0,0.00020086,2]
[363334207,1748680247594,-1200.0,0.00020086,2]
[363334209,1748680247603,-1000.0,0.00020112,2]
[363334211,1748680247612,-1000.0,0.00020112,2]
[363334213,1748680247621,-1000.0,0.00020112,2]
[363334215,1748680247630,-1000.0,0.00020112,2]
[363334217,1748680247639,-1008.86377791,0.00020112,2]
[363334219,1748680247648,-1000.0,0.00020112,2]
[363334221,1748680247658,-1000.0,0.00020112,2]
[363334223,1748680247668,-421.21542315,0.00020112,2]
[363334225,1748680247677,-1004.31260326,0.00020112,2]
[363334227,1748680247687,-1000.0,0.00020112,2]
[363334229,1748680247696,-1000.0,0.00020112,2]
[363334231,1748680247707,-1000.0,0.00020112,2]
[363334233,1748680247716,-593.6840161,0.00020199,2]
[363334235,1748680247725,-1285.56,0.00020272,2]
[363334237,1748680247735,-430.0,0.00020272,2]
[363334239,1748680247746,-562.06,0.00020272,2]
[363334241,1748680247755,-666.14,0.00020272,2]
[363334243,1748680247764,-430.0,0.00020272,2]
[363334245,1748680247776,-766.51,0.00020272,2]
[363334247,1748680247785,-4392.05,0.00020272,2]
[363334249,1748680247795,-650.56,0.00020272,2]
[363334251,1748680247804,-430.0,0.00020272,2]
[363334253,1748680247813,-441.32,0.00020273,2]
[363334255,1748680247823,-430.0,0.00020273,2]
[363334257,1748680247832,-1677.22,0.00020273,2]
[363334259,1748680247841,-430.0,0.00020273,2]
[363334260,1748680247852,-430.0,0.00020273,2]
[363334261,1748680247862,-965.51,0.00020273,2]
[363334262,1748680247871,-2039.92,0.00020273,2]
[363334263,1748680247881,-1308.83,0.00020273,2]
[363334264,1748680247890,-507.89,0.00020273,2]
[363334265,1748680247899,-758.04,0.00020273,2]
[363334266,1748680247909,-430.0,0.00020273,2]
[363334267,1748680247920,-430.0,0.00020273,2]
[363334268,1748680247929,-1656.47,0.00020273,2]
[363334270,1748680247939,-299.27,0.00020273,2]
[363334272,1748680247948,-692.71,0.00020273,2]
[363334274,1748680247958,-454.91,0.00020273,2]
[363334276,1748680247967,-633.95,0.00020273,2]
[363334278,1748680247977,-430.0,0.00020273,2]
[363334280,1748680247986,-746.34,0.00020273,2]
[363334282,1748680247995,-631.7,0.00020273,2]
[363334284,1748680248004,-1264.09,0.00020273,2]
[363334286,1748680248014,-1512.98,0.00020273,2]
[363334288,1748680248023,-166.0,0.00020274,2]
[363334290,1748680248035,-221.0,0.00020274,3]
[363334292,1748680248045,-250.0,0.00020294,2]
[363334294,1748680248055,-60736.9498353,0.00020313,3]
[363334339,1748680248480,-2056.42664429,0.00020313,3]
[363334341,1748680248492,-61945.44154713,0.00020313,3]
[363334344,1748680248508,-430.0,0.00017808,2]
[363334346,1748680248517,-9413.86002578,0.00020313,3]
[363334348,1748680248526,-72889.10627311,0.00020313,2]
[363334350,1748680248536,-2371.29337549,0.00020314,3]
[363334352,1748680248546,-314.84782018,0.0002032,3]
[363334354,1748680248555,-12664.98044988,0.0002032,3]
[363334356,1748680248565,-842.5625,0.0002032,3]
[363334358,1748680248574,-501.11265055,0.00020323,2]
[363334360,1748680248583,-1000.0,0.00020356,2]
[363334362,1748680248592,-500.0,0.00020369,2]
[363334364,1748680248602,-593.6840161,0.00020376,2]
[363334365,1748680248611,-151.0,0.000205,4]
[363334367,1748680248620,-427.0347953,0.00020521,2]
[363334370,1748680248630,-153.0,0.00020521,2]
[363334371,1748680248640,-153.0,0.00020521,2]
[363334373,1748680248649,-153.0,0.00020521,2]
[363334375,1748680248659,-1285.56,0.00020546,2]
[363334377,1748680248669,-430.0,0.00020546,2]
[363334380,1748680248680,-562.06,0.00020546,2]
[363334381,1748680248690,-666.14,0.00020546,2]
[363334383,1748680248700,-430.0,0.00020546,2]
[363334385,1748680248710,-766.51,0.00020546,2]
[363334387,1748680248719,-4392.05,0.00020546,2]
[363334389,1748680248729,-650.56,0.00020546,2]
[363334391,1748680248738,-430.0,0.00020546,2]
[363334393,1748680248748,-441.32,0.00020547,2]
[363334395,1748680248757,-454.19,0.00020547,2]
[363334397,1748680248767,-1677.22,0.00020547,2]
[363334399,1748680248777,-430.0,0.00020547,2]
[363334401,1748680248787,-430.0,0.00020547,2]
[363334404,1748680248797,-965.51,0.00020547,2]
[363334406,1748680248807,-2039.92,0.00020547,2]
[363334407,1748680248816,-1308.83,0.00020547,2]
[363334409,1748680248826,-507.89,0.00020547,2]
[363334412,1748680248836,-758.04,0.00020547,2]
[363334414,1748680248845,-304.0,0.00020547,2]
[363334415,1748680248855,-430.0,0.00020547,2]
[363334417,1748680248865,-1656.47,0.00020547,2]
[363334419,1748680248874,-692.71,0.00020547,2]
[363334421,1748680248884,-454.91,0.00020547,2]
[363334423,1748680248895,-633.95,0.00020547,2]
[363334425,1748680248904,-430.0,0.00020547,2]
[363334427,1748680248914,-746.34,0.00020547,2]
[363334430,1748680248923,-631.7,0.00020547,2]
[363334432,1748680248933,-1264.09,0.00020547,2]
[363334433,1748680248943,-1512.98,0.00020547,2]
[363334436,1748680248953,-2371.29337549,0.00020555,3]
[363334438,1748680248964,-500.0,0.00020577,2]
[363334439,1748680248974,-205.68099355,0.00020577,2]
[363334441,1748680248984,-9616.45314764,0.000206,2]
[363334444,1748680248994,-151.0,0.000206,2]
[363334446,1748680249005,-4103.45,0.000206,2]
[363334448,1748680249015,-624.06154288,0.00020604,2]
[363334450,1748680249027,-1500.0,0.00020634,2]
[363334452,1748680249039,-1500.0,0.00020634,2]
[363334454,1748680249048,-1500.0,0.00020634,2]
[363334456,1748680249058,-1061.77688493,0.00020634,2]
[363334458,1748680249067,-1500.0,0.00020634,2]
[363334460,1748680249077,-1500.0,0.00020634,2]
[363334462,1748680249087,-1800.0,0.00020634,2]
[363334464,1748680249096,-500.0,0.0002066,2]
[363334466,1748680249107,-500.0,0.0002066,2]
[363334468,1748680249116,-500.0,0.0002066,2]
[363334470,1748680249125,-1500.0,0.0002066,2]
[363334472,1748680249134,-1500.0,0.0002066,2]
[363334486,1748680249257,-500.0,0.0002066,2]
[363334488,1748680249268,-1004.32502589,0.0002066,2]
[363334490,1748680249277,-500.0,0.0002066,2]
[363334492,1748680249286,-1569.57694057,0.0002066,2]
[363334494,1748680249296,-160.0,0.0002067,3]
[363334496,1748680249305,-999.62091595,0.00020699,5]
[363334498,1748680249314,-201.05851625,0.00020709,2]
[363334500,1748680249323,-207.4,0.00020709,2]
[363334502,1748680249332,-5000.0,0.00020709,2]
[363334504,1748680249341,-4892.79062675,0.00020709,2]
[363334506,1748680249350,-151.0,0.00020709,2]
[363334508,1748680249361,-2371.29337549,0.00020797,4]
[363334510,1748680249371,-1285.56,0.0002082,2]
[363334512,1748680249380,-430.0,0.0002082,2]
[363334514,1748680249390,-562.06,0.0002082,2]
[363334516,1748680249399,-666.14,0.0002082,2]
[363334518,1748680249408,-430.0,0.0002082,2]
[363334520,1748680249419,-766.51,0.0002082,2]
[363334522,1748680249428,-4392.05,0.0002082,2]
[363334524,1748680249437,-650.56,0.0002082,2]
[363334526,1748680249446,-361.69381,0.00020821,2]
[363334528,1748680249456,-361.69381,0.00020821,2]
[363334530,1748680249465,-151.0,0.00020821,2]
[363334532,1748680249474,-185.007929,0.00020821,2]
[363334534,1748680249484,-169.220262,0.00020821,2]
[363334536,1748680249494,-151.0,0.00020821,2]
[363334538,1748680249503,-169.220262,0.00020821,2]
[363334540,1748680249512,-151.0,0.00020821,2]
[363334542,1748680249522,-422.665848,0.00020821,2]
[363334545,1748680249533,-654.494445,0.00020821,2]
[363334547,1748680249543,-654.494445,0.00020821,2]
[363334549,1748680249553,-151.0,0.00020821,2]
[363334551,1748680249563,-153.202448,0.00020821,2]
[363334553,1748680249572,-441.32,0.00020821,2]
[363334555,1748680249582,-1677.22,0.00020821,2]
[363334557,1748680249591,-430.0,0.00020821,2]
[363334559,1748680249601,-430.0,0.00020821,2]
[363334561,1748680249610,-965.51,0.00020821,2]
[363334563,1748680249619,-2039.92,0.00020821,2]
[363334565,1748680249629,-1308.83,0.00020821,2]
[363334567,1748680249638,-507.89,0.00020821,2]
[363334569,1748680249647,-758.04,0.00020821,2]
[363334571,1748680249656,-251.9999109,0.00020821,2]
[363334573,1748680249666,-1656.47,0.00020821,2]
[363334575,1748680249675,-692.71,0.00020821,2]
[363334577,1748680249685,-454.91,0.00020821,2]
[363334579,1748680249695,-633.95,0.00020821,2]
[363334581,1748680249704,-430.0,0.00020821,2]
[363334583,1748680249713,-746.34,0.00020821,2]
[363334585,1748680249722,-631.7,0.00020821,2]
[363334587,1748680249731,-1264.09,0.00020821,2]
[363334589,1748680249742,-1512.98,0.00020821,2]
[363334590,1748680249751,-267.12225678,0.00020839,2]
[363334592,1748680249760,-151.0,0.000209,4]
[363334594,1748680249770,-157.5499743,0.00020959,2]
[363334596,1748680249780,-164.36045127,0.00020959,2]
[363334599,1748680249789,-157.5499743,0.00020959,2]
[363334601,1748680249799,-3000.0,0.00021,2]
[363334603,1748680249808,-3000.0,0.0002101,2]
[363334604,1748680249819,-3000.0,0.0002102,2]
[363334606,1748680249828,-153.551368,0.0002102,2]
[363334608,1748680249838,-151.0,0.0002102,2]
[363334610,1748680249847,-3000.0,0.0002103,2]
[363334612,1748680249857,-2371.29337549,0.00021038,4]
[363334615,1748680249867,-3000.0,0.0002104,2]
[363334617,1748680249876,-151.0,0.0002104,2]
[363334619,1748680249886,-3000.0,0.0002105,2]
[363334621,1748680249895,-3000.0,0.0002106,2]
[363334623,1748680249905,-3000.0,0.0002107,2]
[363334625,1748680249915,-3000.0,0.0002108,2]
[363334627,1748680249925,-3000.0,0.0002109,2]
[363334629,1748680249934,-1285.56,0.00021093,2]
[363334631,1748680249944,-430.0,0.00021093,2]
[363334633,1748680249953,-562.06,0.00021093,2]
[363334635,1748680249962,-666.14,0.00021093,2]
[363334637,1748680249971,-214.7,0.00021093,2]
[363334639,1748680249980,-766.51,0.00021093,2]
[363334641,1748680249990,-4392.05,0.00021093,2]
[363334643,1748680249999,-650.56,0.00021093,2]
[363334645,1748680250008,-151.0,0.00021095,2]
[363334647,1748680250017,-284.855561,0.00021095,2]
[363334649,1748680250027,-441.32,0.00021095,2]
[363334650,1748680250039,-1677.22,0.00021095,2]
[363334652,1748680250048,-430.0,0.00021095,2]
[363334655,1748680250058,-392.5,0.00021095,2]
[363334656,1748680250067,-965.51,0.00021095,2]
[363334658,1748680250076,-2039.92,0.00021095,2]
[363334660,1748680250085,-1308.83,0.00021095,2]
[363334662,1748680250094,-507.89,0.00021095,2]
[363334664,1748680250103,-758.04,0.00021095,2]
[363334666,1748680250112,-1656.47,0.00021095,2]
[363334668,1748680250121,-692.71,0.00021095,2]
[363334669,1748680250130,-454.91,0.00021095,2]
[363334671,1748680250139,-633.95,0.00021095,2]
[363334673,1748680250148,-430.0,0.00021095,2]
[363334675,1748680250159,-746.34,0.00021095,2]
[363334677,1748680250169,-631.7,0.00021095,2]
[363334679,1748680250178,-1264.09,0.00021095,2]
[363334681,1748680250188,-1512.98,0.00021095,2]
[363334683,1748680250198,-3000.0,0.000211,2]
[363334685,1748680250207,-151.0,0.000211,2]
[363334687,1748680250216,-151.0,0.000211,2]
[363334689,1748680250227,-3000.0,0.0002111,2]
[363334691,1748680250236,-151.0,0.0002111,2]
[363334693,1748680250245,-3000.0,0.0002112,2]
[363334695,1748680250254,-152.089388,0.0002112,2]
[363334697,1748680250264,-154.788343,0.0002112,2]
[363334699,1748680250273,-600.0,0.0002112,2]
[363334701,1748680250283,-3000.0,0.0002113,2]
[363334703,1748680250293,-3000.0,0.0002114,2]
[363334705,1748680250302,-3000.0,0.0002115,2]
[363334707,1748680250312,-151.0,0.0002115,2]
[363334709,1748680250321,-151.624286,0.0002115,2]
[363334711,1748680250330,-151.0,0.0002115,2]
[363334713,1748680250339,-500.0,0.00021156,2]
[363334715,1748680250349,-3000.0,0.0002116,2]
[363334717,1748680250358,-3000.0,0.0002117,2]
[363334719,1748680250367,-151.0,0.0002117,2]
[363334721,1748680250377,-151.0,0.0002117,2]
[363334723,1748680250386,-3377.439213,0.0002117,2]
[363334725,1748680250395,-3377.439213,0.0002117,2]
[363334727,1748680250405,-1067.310522,0.0002117,2]
[363334729,1748680250415,-1067.310522,0.0002117,2]
[363334731,1748680250429,-161.87132,0.0002117,2]
[363334733,1748680250438,-161.87132,0.0002117,2]
[363334735,1748680250447,-3000.0,0.0002118,2]
[363334737,1748680250457,-2000.0,0.00021182,2]
[363334740,1748680250467,-2000.0,0.00021182,2]
[363334742,1748680250477,-1500.0,0.00021182,2]
[363334744,1748680250486,-2000.0,0.00021182,2]
[363334746,1748680250495,-2000.0,0.00021182,2]
[363334748,1748680250504,-2400.0,0.00021182,2]
[363334750,1748680250514,-3000.0,0.0002119,2]
[363334752,1748680250523,-3000.0,0.000212,2]
[363334754,1748680250533,-9490.69,0.000212,2]
[363334756,1748680250542,-500.0,0.00021207,2]
[363334758,1748680250551,-500.0,0.00021207,2]
[363334760,1748680250560,-3000.0,0.0002121,2]
[363334762,1748680250569,-3000.0,0.0002122,2]
[363334764,1748680250578,-632.75296416,0.0002123,2]
[363334777,1748680250699,-300.0,0.00017259,2]
[363334779,1748680250708,-803.72,0.00017806,2]
[363334781,1748680250717,-803.72,0.0001808,2]
[363334783,1748680250726,-163.44313117,0.00018082,2]
[363334874,1748680251678,-430.0,0.00016438,2]
[363334876,1748680251687,-430.0,0.00016438,2]
[363334878,1748680251697,-430.0,0.00016712,2]
[363334880,1748680251706,-266.55686883,0.00018082,2]
[363334882,1748680251717,-803.72,0.00018354,2]
[363334884,1748680251726,-430.0,0.00018356,2]
[363334886,1748680251735,-803.72,0.00018628,2]
[363334888,1748680251745,-67.84629247,0.00018846,2]
[363337421,1748680795672,161.441727,0.00013699,2]
[363337423,1748681228132,-730.20733559,0.00015132,2]
[363337424,1748681239135,-338.71716341,0.00015132,2]
[363337425,1748681239160,-1200.0,0.00015373,2]
[363337426,1748681239184,-300.0,0.00015373,2]
[363337427,1748681239207,-300.0,0.00015373,2]
[363337428,1748681239232,-10000.0,0.00015374,2]
[363337429,1748681239257,-300.0,0.000154,2]
[363337430,1748681239283,-300.0,0.000154,2]
[363337431,1748681239309,-300.0,0.000154,2]
[363337432,1748681239337,-500.0,0.00015403,2]
[363337433,1748681239363,-586.50462087,0.00015403,2]
[363337434,1748681239390,-500.0,0.00015403,2]
[363337435,1748681239414,-500.0,0.00015403,2]
[363337436,1748681239440,-500.0,0.00015403,2]
[363337437,1748681239688,-500.0,0.00015403,2]
[363337438,1748681239711,-562.4530997,0.00015403,2]
[363337439,1748681239737,-12846.43820529,0.00015404,2]
[363337440,1748681348124,-168.19204084,0.00015273,2]
[363337441,1748681348148,-3067.67783905,0.00015404,2]
[363337442,1748681351123,-687.19518816,0.00015404,2]
[363337443,1748681351146,-168.19204084,0.00015539,2]
[363337444,1748681351168,-56.012771,0.00015805,2]
[363337445,1748681353129,-112.17926984,0.00015805,2]
[363337446,1748681353154,-281.8826415,0.00016052,2]
[363337447,1748681353174,-168.19204084,0.00016071,2]
[363337448,1748681353196,-300.0,0.00016151,2]
[363337449,1748681353217,-9062.37327799,0.00016152,2]
[363337456,1748681431935,-205.49754575,0.00016152,2]
[363337457,1748681431950,-168.19204084,0.00016337,2]
[363337458,1748681431964,-300.0,0.00016436,2]
[363337459,1748681431974,-1200.0,0.00016436,2]
[363337460,1748681431984,-213.0,0.00016436,2]
[363337461,1748681431994,-300.0,0.00016436,2]
[363337462,1748681432003,-548.94336459,0.00016437,2]
[363337463,1748681432014,-500.0,0.00016437,2]
[363337464,1748681432023,-500.0,0.00016437,2]
[363337465,1748681432033,-500.0,0.00016437,2]
[363337466,1748681432043,-500.0,0.00016437,2]
[363337467,1748681432053,-500.0,0.00016437,2]
[363337468,1748681432063,-500.0,0.00016437,2]
[363337469,1748681432072,-568.1891637,0.00016437,2]
[363337470,1748681432082,-500.0,0.00016437,2]
[363337471,1748681432092,-1000.0,0.00016437,2]
[363337472,1748681432101,-1000.0,0.00016437,2]
[363337473,1748681432111,-1000.0,0.00016437,2]
[363337474,1748681432120,-155.0,0.00016437,2]
[363337475,1748681432130,-229.16145552,0.00016437,2]
[363337476,1748681432140,-430.0,0.00016438,2]
[363337477,1748681432150,-431.04514393,0.00016438,2]
[363337478,1748681432159,-430.0,0.00016438,2]
[363337479,1748681432170,-334.37116385,0.00016438,2]
[363337480,1748681432179,-430.0,0.00016438,2]
[363337481,1748681432189,-430.0,0.00016438,2]
[363337482,1748681432198,-435.19012237,0.00016438,2]
[363337483,1748681432208,-437.76449362,0.00016438,2]
[363337484,1748681432218,-414.26233174,0.00016438,2]
[363337485,1748681432227,-430.0,0.00016438,2]
[363337486,1748681432236,-430.0,0.00016438,2]
[363337487,1748681432246,-430.0,0.00016438,2]
[363337488,1748681432255,-352.64627263,0.00016438,2]
[363337489,1748681432265,-430.0,0.00016438,2]
[363337490,1748681432275,-423.27431,0.00016438,2]
[363337491,1748681432284,-430.0,0.00016438,2]
[363337492,1748681432294,-430.0,0.00016438,2]
[363337493,1748681432303,-430.0,0.00016438,2]
[363337494,1748681432313,-410.46608318,0.00016438,2]
[363337495,1748681432323,-421.87053855,0.00016438,2]
[363337496,1748681432332,-430.0,0.00016438,2]
[363337497,1748681432342,-430.0,0.00016438,2]
[363337498,1748681432351,-430.0,0.00016438,2]
[363337499,1748681432363,-404.29426956,0.00016438,2]
[363337500,1748681432376,-509.48333976,0.00016438,2]
[363337501,1748681432390,-430.0,0.00016438,2]
[363337502,1748681432400,-521.16,0.00016438,2]
[363337503,1748681432413,-352.34221752,0.00016438,2]
[363337504,1748681432423,-370.0,0.00016438,2]
[363337505,1748681432434,-404.58896524,0.00016438,2]
[363337506,1748681432444,-430.0,0.00016438,2]
[363337507,1748681432454,-430.0,0.00016438,2]
[363337508,1748681432464,-400.0,0.00016438,2]
[363337509,1748681432474,-430.0,0.00016438,2]
[363337510,1748681432485,-430.0,0.00016438,2]
[363337511,1748681432495,-547.34600542,0.00016438,2]
[363337512,1748681432504,-430.0,0.00016438,2]
[363337513,1748681432514,-430.0,0.00016438,2]
[363337514,1748681432523,-430.0,0.00016438,2]
[363337515,1748681432535,-430.0,0.00016438,2]
[363337516,1748681432545,-430.0,0.00016438,2]
[363337517,1748681432554,-430.0,0.00016438,2]
[363337518,1748681432564,-409.97627564,0.00016438,2]
[363337519,1748681432574,-430.0,0.00016438,2]
[363337520,1748681432584,-430.0,0.00016438,2]
[363337521,1748681432593,-446.33880489,0.00016438,2]
[363337522,1748681432614,-430.0,0.00016438,2]
[363337523,1748681432627,-370.0,0.00016438,2]
[363337524,1748681432637,-400.0,0.00016438,2]
[363337525,1748681432646,-430.0,0.00016438,2]
[363337526,1748681432656,-400.0,0.00016438,2]
[363337527,1748681432665,-348.67685708,0.00016438,2]
[363337528,1748681432675,-430.0,0.00016438,2]
[363337529,1748681432684,-430.0,0.00016438,2]
[363337530,1748681432694,-430.0,0.00016438,2]
[363337531,1748681432705,-400.0,0.00016438,2]
[363337532,1748681432715,-430.0,0.00016438,2]
[363337533,1748681432724,-430.0,0.00016438,2]
[363337534,1748681432733,-400.0,0.00016438,2]
[363337535,1748681432743,-430.0,0.00016438,2]
[363337536,1748681432752,-469.10966085,0.00016438,2]
[363337537,1748681432762,-430.0,0.00016438,2]
[363337538,1748681432771,-430.0,0.00016438,2]
[363337539,1748681432781,-430.0,0.00016438,2]
[363337540,1748681432790,-400.0,0.00016438,2]
[363337541,1748681432799,-420.0,0.00016438,2]
[363337542,1748681432810,-430.0,0.00016438,2]
[363337543,1748681432820,-430.0,0.00016438,2]
[363337544,1748681432830,-370.0,0.00016438,2]
[363337545,1748681432839,-479.78921347,0.00016438,2]
[363337546,1748681432850,-430.0,0.00016438,2]
[363337547,1748681432860,-430.0,0.00016438,2]
[363337548,1748681432869,-430.0,0.00016438,2]
[363337549,1748681432878,-430.0,0.00016438,2]
[363337550,1748681432888,-430.0,0.00016438,2]
[363337551,1748681432898,-405.06258156,0.00016438,2]
[363337552,1748681432908,-420.0,0.00016438,2]
[363337553,1748681432918,-430.0,0.00016438,2]
[363337554,1748681432927,-548.05350165,0.00016438,2]
[363337555,1748681432937,-454.05,0.00016438,2]
[363337556,1748681432946,-430.0,0.00016438,2]
[363337557,1748681432956,-332.44672828,0.00016438,2]
[363337558,1748681432966,-430.0,0.00016438,2]
[363337559,1748681432976,-430.0,0.00016438,2]
[363337560,1748681432986,-430.0,0.00016438,2]
[363337561,1748681432995,-430.0,0.00016438,2]
[363337562,1748681433009,-430.0,0.00016438,2]
[363337563,1748681433019,-430.0,0.00016438,2]
[363337564,1748681433028,-320.0,0.00016438,2]
[363337565,1748681433038,-430.0,0.00016438,2]
[363337566,1748681433049,-430.0,0.00016438,2]
[363337567,1748681433059,-470.0,0.00016438,2]
[363337568,1748681433069,-455.96145594,0.00016438,2]
[363337569,1748681433079,-430.0,0.00016438,2]
[363337570,1748681433229,-430.0,0.00016438,2]
[363337571,1748681433240,-452.87921709,0.00016438,2]
[363337572,1748681433250,-430.0,0.00016438,2]
[363337573,1748681433260,-430.0,0.00016438,2]
[363337574,1748681433270,-430.0,0.00016438,2]
[363337575,1748681433279,-505.32046801,0.00016438,2]
[363337576,1748681433289,-450.0,0.00016438,2]
[363337577,1748681433298,-430.0,0.00016438,2]
[363337578,1748681433308,-430.0,0.00016438,2]
[363337579,1748681433317,-376.8597173,0.00016438,2]
[363337580,1748681433327,-430.0,0.00016438,2]
[363337581,1748681433337,-430.0,0.00016438,2]
[363337582,1748681433347,-430.0,0.00016438,2]
[363337583,1748681433358,-430.0,0.00016438,2]
[363337584,1748681433368,-430.0,0.00016438,2]
[363337585,1748681433378,-531.0865182,0.00016438,2]
[363337586,1748681433388,-430.0,0.00016438,2]
[363337587,1748681433398,-430.0,0.00016438,2]
[363337588,1748681433408,-430.0,0.00016438,2]
[363337589,1748681433417,-508.74640169,0.00016438,2]
[363337590,1748681433426,-430.0,0.00016438,2]
[363337591,1748681433436,-430.0,0.00016438,2]
[363337592,1748681433445,-430.0,0.00016438,2]
[363337593,1748681433457,-430.0,0.00016438,2]
[363337594,1748681433467,-430.0,0.00016438,2]
[363337595,1748681433477,-430.0,0.00016438,2]
[363337596,1748681433488,-430.0,0.00016438,2]
[363337597,1748681433498,-315.19481354,0.00016438,2]
[363337598,1748681433508,-430.0,0.00016438,2]
[363337599,1748681433519,-430.0,0.00016438,2]
[363337600,1748681433531,-430.0,0.00016438,2]
[363337601,1748681433546,-411.31030501,0.00016438,2]
[363337602,1748681433555,-430.0,0.00016438,2]
[363337603,1748681433564,-445.46,0.00016438,2]
[363337604,1748681433574,-159.15208801,0.00016438,2]
[363337605,1748681433584,-430.0,0.00016438,2]
[363337606,1748681433593,-430.0,0.00016438,2]
[363337607,1748681433603,-434.04241686,0.00016438,2]
[363337608,1748681433612,-430.0,0.00016438,2]
[363337609,1748681433622,-430.0,0.00016438,2]